bitfinex/quotes_ETHUSD_20250715
["timestamp","ask_amount","ask_price","bid_price","bid_amount"]
[1752604450778,3.0,3065.0,3063.8,7.72082448]
[1752604450779,0.5922,3065.1,3064.6,3.42546051]
[1752604451132,3.4298,3065.0,3064.7,0.03262962]
[1752604451265,6.26296211,3064.7,3064.0,3.26364412]
[1752604451459,6.26296211,3064.7,3064.2,0.1624]
[1752604451703,0.1624,3064.8,3064.3,3.29601743]
[1752604452008,0.1624,3065.0,3064.5,0.1624]
[1752604452210,9.4169,3065.6,3064.6,0.03263068]
[1752604452426,30.4298,3065.5,3064.6,0.03263068]
[1752604452566,3.26275214,3064.9,3064.6,0.1624]
[1752604452766,3.0,3065.0,3064.6,0.1624]
[1752604452967,0.4298,3065.4,3064.6,0.1624]
[1752604452968,0.4298,3065.2,3064.8,3.26276932]
[1752604453208,0.1624,3065.5,3064.9,0.19502749]
[1752604453520,0.4298,3065.1,3064.9,0.19502749]
[1752604453694,0.4298,3065.1,3064.9,0.1624]
[1752604453866,0.4298,3065.1,3064.9,0.19502749]
[1752604454062,6.2622616,3065.4,3064.9,0.19502749]
[1752604454270,0.1624,3065.5,3065.1,3.26252941]
[1752604454464,0.5922,3065.5,3065.2,0.03262429]
[1752604454710,0.4298,3065.5,3065.2,3.29498444]
[1752604455028,3.692017,3065.4,3065.3,0.1624]
[1752604455190,3.4298,3065.4,3065.0,0.1624]
[1752604455572,3.0,3065.6,3064.5,3.29578499]
[1752604455900,0.1634,3065.7,3065.2,0.1624]
[1752604456100,3.0,3065.6,3065.3,0.03262323]
[1752604456322,3.0,3065.4,3065.2,0.1624]
[1752604456625,0.4298,3065.6,3065.2,0.1624]
[1752604456626,0.4298,3065.6,3065.2,0.19502429]
[1752604456773,3.4298,3065.6,3065.2,0.1624]
[1752604457288,0.1634,3065.7,3065.3,0.03262323]
[1752604457468,0.1634,3065.7,3065.4,3.2621986]
[1752604457670,0.1634,3065.7,3065.3,3.29492116]
[1752604457897,3.4561,3065.6,3065.3,0.03262323]
[1752604458097,0.4561,3065.6,3065.2,0.1624]
[1752604458306,3.4561,3065.6,3065.2,0.1624]
[1752604458474,0.4561,3065.6,3065.3,0.03262323]
[1752604458686,0.4561,3065.6,3065.3,3.29494336]
[1752604459017,3.1634,3065.7,3065.3,0.03262323]
[1752604459214,0.001,3065.7,3065.5,3.2620367]
[1752604459392,0.001,3065.7,3065.5,3.26204805]
[1752604459586,0.001,3065.7,3065.6,3.26200417]
[1752604460021,0.84276892,3067.5,3067.4,3.26008997]
[1752604460228,0.17010515,3067.8,3067.7,3.25977116]
[1752604460229,0.84276892,3067.8,3067.7,3.25977116]
[1752604460427,1.29886892,3068.1,3068.0,3.25945241]
[1752604460590,0.1624,3068.4,3067.8,0.19499664]
[1752604460919,0.4561,3068.5,3068.0,0.1624]
[1752604461119,0.1624,3068.8,3068.2,0.1624]
[1752604461120,33.71521257,3068.4,3068.2,0.1624]
[1752604461325,3.25924929,3068.2,3067.9,0.1624]
[1752604461491,3.25931086,3068.2,3067.9,0.1624]
[1752604461680,3.71546181,3068.1,3067.9,0.1624]
[1752604462018,3.71544808,3068.1,3067.9,0.1624]
[1752604462221,0.4561,3068.0,3067.9,0.1624]
[1752604462925,3.71555241,3068.0,3067.9,0.1624]
[1752604463088,0.4561,3068.0,3067.9,0.1624]
[1752604463614,3.71555241,3068.0,3067.9,0.1624]
[1752604464124,3.71555241,3068.0,3067.1,3.26040069]
[1752604464125,3.0,3067.8,3066.8,1.6426]
[1752604464276,3.0,3067.6,3066.9,0.03260621]
[1752604464487,1.646,3067.1,3065.6,1.6426]
[1752604464680,6.26077504,3066.8,3065.7,5.15466]
[1752604464909,3.0,3066.0,3065.1,1.6426]
[1752604465089,3.0,3066.2,3065.2,4.443]
[1752604465289,3.26176155,3065.9,3065.2,4.44]
[1752604465532,3.0,3066.5,3065.6,3.26196914]
[1752604465743,30.0,3066.4,3065.7,0.03261897]
[1752604466046,3.0,3066.4,3065.8,4.438]
[1752604466176,3.0,3066.4,3065.9,0.03261684]
[1752604466380,0.4561,3066.3,3065.9,0.03261684]
[1752604466576,0.4561,3066.3,3065.9,3.29430167]
[1752604466887,0.4561,3066.8,3065.9,0.36204701]
[1752604467094,0.4561,3066.8,3066.5,3.26104395]
[1752604467292,0.4561,3067.3,3066.6,0.0326094]
[1752604467494,3.26062379,3066.9,3066.6,4.431]
[1752604467681,3.26083412,3066.7,3066.6,4.431]
[1752604467901,3.26083412,3066.7,3065.8,3.26177304]
[1752604467902,3.0,3066.5,3065.9,3.26167111]
[1752604468182,3.0,3066.5,3065.9,4.428]
[1752604468489,3.0,3066.5,3065.9,7.68759593]
[1752604468690,8.31106918,3066.7,3065.9,3.26164797]
[1752604468893,3.26145332,3066.2,3065.4,4.423]
[1752604469092,3.0,3066.1,3065.6,3.26199733]
[1752604469291,0.4561,3066.4,3066.0,3.26151748]
[1752604469520,0.4561,3066.4,3066.1,0.03261472]
[1752604469907,0.4561,3066.3,3066.1,0.03261472]
[1752604470229,0.4561,3066.3,3065.8,3.26177424]
[1752604470384,3.26175197,3065.9,3065.2,3.26234029]
[1752604470732,0.4561,3065.8,3065.3,0.03262323]
[1752604471030,4.5941,3066.7,3065.3,0.03262323]
[1752604471031,3.26134022,3066.3,3065.3,0.03262323]
[1752604471234,3.4561,3066.1,3065.4,3.26217136]
[1752604471537,3.26200417,3065.6,3064.0,1.5494]
[1752604471696,0.4561,3065.5,3064.2,3.26349454]
[1752604471899,3.0,3065.8,3065.2,3.26232585]
[1752604472118,0.4561,3066.0,3065.0,3.26257812]
[1752604472289,3.0,3065.4,3065.1,0.03262536]
[1752604472484,3.0,3065.4,3064.9,3.26267767]
[1752604472683,0.4561,3065.3,3065.0,3.26256424]
[1752604472924,0.4561,3065.3,3065.2,3.26242985]
[1752604473130,1.9592,3065.2,3065.1,0.03262536]
[1752604473426,3.0,3065.1,3064.4,3.26324397]
[1752604473637,3.0,3065.0,3064.5,0.03263175]
[1752604473783,3.262324,3065.3,3064.5,0.03263175]
[1752604473784,3.0,3065.3,3064.5,0.03263175]
[1752604473983,0.4561,3065.6,3065.1,3.26244981]
[1752604474183,3.0,3065.4,3065.1,0.1624]
[1752604474431,0.4561,3065.3,3065.1,0.1624]
[1752604475037,0.4561,3065.2,3064.9,0.03262749]
[1752604475237,0.4561,3065.3,3064.9,0.03262749]
[1752604475444,0.4561,3065.3,3065.0,3.26264274]
[1752604475624,1.5031,3065.7,3065.2,3.26234626]
[1752604475937,1.5031,3065.7,3065.3,0.03262323]
[1752604475938,0.4561,3065.7,3065.3,0.03262323]
[1752604476254,0.4561,3065.7,3065.4,3.26215846]
[1752604476438,0.4561,3065.7,3065.5,3.29469418]
[1752604476641,1.9592,3066.2,3065.5,0.0326211]
[1752604476842,30.0,3066.1,3065.2,3.26242985]
[1752604476994,30.0,3066.1,3065.6,3.26194235]
[1752604477201,30.0,3066.1,3065.7,0.03261897]
[1752604477202,3.4561,3066.0,3065.7,0.03261897]
[1752604477772,0.4561,3066.0,3065.7,0.03261897]
[1752604478138,1.5031,3066.2,3065.7,0.03261897]
[1752604478483,30.0,3066.1,3066.0,3.2615786]
[1752604478994,0.4561,3066.3,3066.1,3.26142368]
[1752604479125,0.4561,3066.3,3066.0,0.03261578]
[1752604479538,0.4561,3066.3,3066.2,3.26136586]
[1752604479745,2.0021,3066.7,3066.6,3.26094045]
[1752604479927,0.4561,3067.2,3066.6,0.32609405]
[1752604480152,0.4561,3067.2,3066.7,0.03260834]
[1752604480352,0.4561,3067.2,3067.0,3.26041629]
[1752604480537,0.4561,3067.2,3067.1,3.26040885]
[1752604480726,0.4561,3067.7,3066.9,0.03260621]
[1752604480930,30.0,3067.6,3067.3,3.26011616]
[1752604481140,30.0,3067.6,3067.4,3.26006041]
[1752604481435,30.0,3067.8,3067.1,3.26040885]
[1752604481633,30.0,3067.8,3067.5,3.25991901]
[1752604481834,30.4561,3067.8,3067.4,0.03260089]
[1752604482034,0.001,3068.0,3067.7,3.25977116]
[1752604482567,0.001,3068.0,3067.9,3.25955865]
[1752604482768,0.001,3068.0,3067.9,3.29215423]
[1752604483470,0.001,3068.0,3067.9,3.25955865]
[1752604483837,0.001,3068.0,3066.8,0.0674]
[1752604484065,0.001,3068.0,3067.3,3.26012366]
[1752604484066,0.4561,3067.9,3067.3,3.26012366]
[1752604484265,0.4561,3067.9,3067.5,3.2599837]
[1752604484465,0.4561,3067.9,3067.6,0.03259877]
[1752604484668,0.4561,3067.9,3067.7,3.25973896]
[1752604484868,0.4561,3067.9,3067.6,3.29245971]
[1752604485068,0.4561,3067.9,3067.6,0.03259877]
[1752604485274,0.001,3068.0,3067.9,3.25955865]
[1752604485668,5.0351,3068.5,3067.9,3.25955865]
[1752604485870,2.0351,3068.5,3068.0,3.25943277]
[1752604486057,0.4561,3068.4,3067.9,3.25952373]
[1752604486262,4.579,3068.5,3068.1,3.25926209]
[1752604486263,0.4561,3068.3,3068.1,3.25926209]
[1752604486461,0.4561,3068.3,3068.2,3.25923994]
[1752604486682,1.579,3068.5,3068.3,3.25904018]
[1752604486859,2.0351,3068.5,3068.1,3.2592852]
[1752604487180,0.4561,3068.5,3068.2,3.25914345]
[1752604487485,0.4561,3068.5,3068.4,3.2590275]
[1752604487644,0.001,3068.8,3068.4,3.2590275]
[1752604487849,0.4616,3068.8,3068.3,3.25913372]
[1752604488081,0.4606,3068.7,3068.4,3.25901499]
[1752604488249,0.001,3068.8,3068.4,3.25901499]
[1752604488449,0.4606,3068.6,3068.4,3.25901499]
[1752604488681,0.4606,3068.6,3068.2,3.29183233]
[1752604488682,0.4606,3068.6,3068.5,3.25892129]
[1752604488886,0.001,3068.8,3068.5,3.25890524]
[1752604489392,0.001,3068.8,3068.3,3.25913372]
[1752604489393,0.4606,3068.7,3068.4,3.25898466]
[1752604489571,0.4606,3068.6,3068.3,0.03259133]
[1752604489771,0.001,3068.3,3067.6,1.5798]
[1752604489972,0.4606,3068.2,3067.7,4.317]
[1752604490174,0.4606,3068.1,3067.7,3.25972632]
[1752604490483,0.4606,3068.0,3067.7,4.316]
[1752604490649,0.4606,3068.0,3067.7,4.34859771]
[1752604490850,0.4606,3068.0,3067.7,7.60830551]
[1752604491052,0.001,3068.3,3067.7,5.40281483]
[1752604491250,0.001,3068.3,3068.1,3.25926393]
[1752604491450,0.4616,3068.3,3067.8,4.309]
[1752604491689,0.4606,3068.2,3067.8,4.309]
[1752604491878,3.4606,3068.1,3067.8,4.309]
[1752604492065,3.25932973,3068.2,3067.8,4.309]
[1752604492385,5.0221,3068.0,3066.7,1.6275]
[1752604492590,3.0,3067.8,3066.2,4.88886586]
[1752604492792,30.4606,3067.7,3066.2,1.6275]
[1752604492987,33.0,3067.6,3066.3,7.59880305]
[1752604493290,3.26030255,3067.2,3066.1,5.481]
[1752604493590,33.4606,3067.1,3066.1,5.481]
[1752604493893,33.4606,3067.1,3066.3,3.26118877]
[1752604493894,6.26066062,3066.9,3066.3,3.26118877]
[1752604494070,3.26073162,3066.8,3066.3,3.26118877]
[1752604494269,6.7211152,3067.0,3066.2,0.03261365]
[1752604494270,0.4606,3066.7,3066.2,0.03261365]
[1752604494471,0.4606,3066.7,3066.3,3.26125939]
[1752604494673,0.4606,3066.7,3066.3,3.26119262]
[1752604494989,0.4606,3066.7,3066.2,1.34021995]
[1752604495177,0.4606,3066.7,3066.4,3.26108433]
[1752604495581,1.5615,3067.3,3066.5,0.03261046]
[1752604495755,3.26083412,3066.7,3066.6,0.1624]
[1752604496094,0.1624,3066.6,3066.2,3.29390633]
[1752604496277,0.623,3066.6,3066.2,3.29390633]
[1752604496477,3.88403654,3066.6,3066.2,0.03261365]
[1752604496697,0.623,3066.6,3066.2,0.03261365]
[1752604496869,0.4606,3066.5,3066.2,4.31661365]
[1752604497073,0.4606,3066.5,3066.2,7.57797314]
[1752604497291,0.1624,3066.6,3066.2,7.54535949]
[1752604497620,0.1624,3066.6,3066.3,3.26123525]
[1752604497803,0.1624,3066.6,3066.2,7.54535531]
[1752604498001,0.1624,3066.6,3064.3,1.5212]
[1752604498002,4.82641058,3065.5,3064.3,1.5212]
[1752604498203,7.82641058,3065.5,3064.4,0.19503281]
[1752604498415,8.28701058,3065.5,3064.7,3.26289853]
[1752604498709,8.28701058,3065.5,3064.8,0.03262855]
[1752604499104,8.28701058,3065.5,3064.8,3.29545296]
[1752604499673,8.28701058,3065.5,3064.8,0.03262855]
[1752604499870,3.1624,3065.4,3063.7,0.2298]
[1752604500074,0.1624,3064.4,3063.9,3.42614578]
[1752604500377,0.4606,3064.3,3063.5,1.5212]
[1752604500571,0.1624,3064.0,3063.5,0.1958424]
[1752604500782,3.26402195,3063.8,3063.2,4.289]
[1752604501014,0.1624,3063.8,3063.3,0.19584453]
[1752604501221,0.1624,3064.2,3063.7,0.1624]
[1752604501518,3.0,3064.7,3063.9,3.26372327]
[1752604501827,3.26306858,3064.6,3063.8,7.55283247]
[1752604501972,3.0,3064.5,3063.9,3.26379986]
[1752604502171,3.4606,3064.9,3063.8,4.289]
[1752604502411,3.0,3064.5,3064.0,3.26367547]
[1752604502706,3.26308439,3064.6,3064.0,3.26366835]
[1752604502912,3.0,3064.4,3063.8,4.281]
[1752604503110,3.0,3064.4,3063.6,3.26407103]
[1752604503111,3.0,3064.0,3063.3,3.26439072]
[1752604503311,0.4606,3063.9,3063.4,0.03264346]
[1752604503512,7.54310774,3064.6,3063.0,4.28]
[1752604503513,2.0169,3064.5,3063.1,0.03264666]
[1752604503698,1.5563,3064.9,3064.6,3.26302897]
[1752604503905,5.484,3065.4,3063.5,0.2298]
[1752604503906,0.4606,3064.8,3063.5,0.2298]
[1752604504078,3.26304385,3064.7,3063.6,4.31164133]
[1752604504418,0.4606,3065.2,3064.6,3.26300499]
[1752604504601,0.4606,3065.2,3064.3,4.279]
[1752604504806,3.72310481,3065.2,3064.6,3.26306822]
[1752604505119,0.4606,3065.2,3064.7,3.26295191]
[1752604505323,0.4606,3065.2,3064.9,3.26269106]
[1752604505476,0.4606,3065.2,3064.8,3.26280547]
[1752604505818,7.53799932,3065.7,3065.1,3.26245856]
[1752604505819,0.4606,3065.6,3065.1,3.26245856]
[1752604506132,0.4606,3065.5,3064.9,3.26264367]
[1752604506436,4.5563,3065.8,3065.2,3.26234247]
[1752604506721,33.72250784,3065.7,3064.8,3.29539655]
[1752604506921,3.0,3065.4,3064.9,3.26266661]
[1752604507081,3.26253629,3065.1,3064.2,1.6656]
[1752604507285,3.26307489,3064.6,3064.1,0.03263601]
[1752604507595,3.26330497,3064.4,3063.6,3.26412715]
[1752604507797,3.0,3064.5,3063.2,1.5385]
[1752604507798,4.6383,3064.2,3063.2,1.5385]
[1752604508020,1.6383,3064.2,3063.2,5.8015]
[1752604508320,1.6383,3064.2,3063.3,0.03264453]
[1752604508321,3.2637855,3064.0,3063.3,0.03264453]
[1752604508527,3.0,3063.9,3063.4,3.26427512]
[1752604508898,3.2637855,3064.0,3063.3,0.03264453]
[1752604508899,3.0,3064.0,3063.3,0.03264453]
[1752604509118,1.6383,3064.2,3063.9,3.2637957]
[1752604509431,0.4606,3064.6,3064.0,0.03263707]
[1752604509720,0.4606,3064.6,3064.0,3.29628404]
[1752604509880,0.4606,3064.6,3064.0,0.03263707]
[1752604510083,0.4606,3065.1,3064.0,0.03263707]
[1752604510313,3.26270604,3065.0,3064.4,3.26327613]
[1752604510620,3.26270604,3065.0,3063.3,3.49419277]
[1752604510621,30.4606,3064.9,3063.1,1.5392]
[1752604510809,3.0,3064.2,3063.6,3.26405354]
[1752604511009,3.0,3064.2,3063.2,4.28764559]
[1752604511010,5.0999,3064.3,3063.7,3.26392141]
[1752604511322,0.1624,3064.0,3063.5,0.1632]
[1752604511623,0.623,3064.0,3063.5,0.1958424]
[1752604511805,0.623,3064.0,3063.5,3.46003729]
[1752604512124,0.623,3064.0,3063.3,0.002]
[1752604512125,0.1632,3063.5,3063.3,0.002]
[1752604512424,30.4606,3063.9,3063.3,0.002]
[1752604512425,36.4275468,3063.4,3063.3,0.002]
[1752604512642,38.5274468,3063.4,3063.3,0.002]
[1752604513006,3.1632,3063.4,3063.3,3.26645336]
[1752604513211,3.7249468,3063.4,3063.3,0.002]
[1752604513411,3.8881468,3063.4,3063.3,0.002]
[1752604513653,43.63148548,3063.4,3063.3,1e-08]
[1752604513885,1.6393,3063.4,3063.3,1e-08]
[1752604514152,0.4606,3063.7,3063.3,1e-08]
[1752604514657,1.6613,3064.3,3064.2,3.26349454]
[1752604514812,0.4606,3064.7,3063.8,3.26392062]
[1752604515175,2.1219,3065.3,3064.0,1.5712]
[1752604515443,2.1219,3065.3,3065.0,3.26262393]
[1752604515648,2.1219,3065.3,3064.1,0.03263601]
[1752604515649,2.1219,3065.3,3065.1,3.26253009]
[1752604515835,2.1219,3065.3,3064.6,0.03263068]
[1752604516010,2.1219,3065.3,3065.1,3.26247889]
[1752604516209,2.1219,3065.3,3064.9,3.26271664]
[1752604516456,2.1219,3065.3,3065.0,3.26257896]
[1752604516611,0.4606,3065.2,3064.5,0.03263175]
[1752604516811,0.4606,3065.2,3064.0,1.5712]
[1752604516812,0.4606,3065.2,3064.2,3.26349454]
[1752604517012,0.4606,3065.2,3065.0,3.26262401]
[1752604517213,0.4606,3065.2,3064.5,0.03263175]
[1752604517413,0.4606,3065.2,3064.8,3.26285268]
[1752604517608,0.001,3065.4,3064.5,0.03263175]
[1752604517911,3.0,3065.3,3064.8,3.26282419]
[1752604518110,0.4396,3065.3,3064.9,3.26272677]
[1752604518529,3.70204892,3065.2,3064.0,1.5712]
[1752604518757,3.2631784,3064.5,3063.9,3.26372752]
[1752604518962,3.2631784,3064.5,3063.6,0.03264133]
[1752604518963,30.4396,3064.4,3063.6,0.03264133]
[1752604519130,3.0,3064.8,3064.2,3.2634182]
[1752604519314,3.626282,3064.7,3064.2,3.2634182]
[1752604519514,1.5985,3065.1,3064.4,3.26328155]
[1752604519716,3.0,3064.9,3063.8,3.26385228]
[1752604520047,3.0,3064.7,3063.6,3.26413369]
[1752604520328,3.26298226,3064.7,3064.1,3.26355017]
[1752604520471,3.26327457,3064.5,3063.8,3.26384431]
[1752604520636,0.4396,3064.6,3063.7,0.03264027]
[1752604520835,3.0,3064.5,3064.0,3.26364198]
[1752604521369,3.0,3064.5,3064.1,3.26356243]
[1752604521370,0.4396,3064.5,3064.1,3.26356243]
[1752604521881,1.5411,3064.3,3063.3,1e-08]
[1752604522033,3.0,3063.4,3063.3,1e-08]
[1752604522239,3.2643468,3063.4,3063.3,1e-08]
[1752604522437,3.4396,3063.4,3063.3,1e-08]
[1752604522735,0.4396,3063.4,3063.3,1e-08]
[1752604522957,3.0,3063.8,3063.3,1e-08]
[1752604523158,3.0,3063.9,3063.4,3.2643468]
[1752604523372,7.8045095,3064.3,3063.4,3.26425887]
[1752604523584,3.4396,3064.2,3063.4,0.03264346]
[1752604523783,3.0,3064.0,3063.3,1e-08]
[1752604523984,4.5411,3063.4,3063.3,1e-08]
[1752604524196,7.8054468,3063.4,3063.3,1e-08]
[1752604524494,4.9807,3063.4,3063.3,1e-08]
[1752604524892,8.2450468,3063.4,3063.3,1e-08]
[1752604525093,8.89999832,3063.4,3063.3,1e-08]
[1752604525499,38.89999832,3063.4,3063.3,1e-08]
[1752604526197,34.9807,3063.4,3063.3,1e-08]
[1752604526394,3.1632,3063.4,3063.3,1e-08]
[1752604528657,6.8671468,3063.4,3063.3,1e-08]
[1752604528860,3.1632,3063.4,3063.3,1e-08]
[1752604529296,3.1632,3063.4,3063.3,3.26445337]
[1752604529494,3.1632,3063.4,3063.3,1e-08]
[1752604529685,3.6028,3063.4,3063.3,1e-08]
[1752604530083,6.8671468,3063.4,3063.3,1e-08]
[1752604530282,7.88027868,3063.4,3063.3,1e-08]
[1752604530461,39.50267868,3063.4,3063.3,1e-08]
[1752604530662,5.2252,3063.4,3063.3,1e-08]
[1752604530883,35.2252,3063.4,3063.3,1e-08]
[1752604531296,38.4895468,3063.4,3063.3,1e-08]
[1752604531499,8.4895468,3063.4,3063.3,1e-08]
[1752604532006,3.6028,3063.4,3063.3,1e-08]
[1752604532293,6.8671468,3063.4,3063.3,1e-08]
[1752604532899,3.1632,3063.4,3063.3,3.26445337]
[1752604533196,3.0,3063.4,3063.3,3.26445337]
[1752604533419,7.0202668,3063.4,3063.3,1e-08]
[1752604533559,3.26477927,3063.0,3062.4,3.26532806]
[1752604533765,0.1632,3062.6,3062.1,3.26567395]
[1752604534014,0.4396,3062.5,3062.0,0.002]
[1752604534220,0.1632,3062.1,3062.0,0.002]
[1752604534909,39.56513266,3062.1,3062.0,0.002]
[1752604535260,3.26692711,3061.0,3060.4,4.78410666]
[1752604535484,3.26669529,3061.2,3060.6,3.26727313]
[1752604535705,6.70611088,3061.4,3060.4,1.5166]
[1752604536009,4.212,3061.7,3060.5,0.03267439]
[1752604536194,0.4396,3061.8,3060.7,3.26722645]
[1752604536372,0.4396,3061.8,3060.8,0.03267119]
[1752604536568,3.0,3061.6,3061.1,3.26678911]
[1752604536809,1.5338,3061.3,3059.6,3.26840109]
[1752604537009,3.26701297,3060.9,3059.5,3.26848281]
[1752604537221,30.4396,3061.2,3059.4,1.6228]
[1752604537222,3.0,3060.7,3059.6,0.03268401]
[1752604537508,3.26754672,3060.4,3059.7,3.26822203]
[1752604537672,3.0,3060.7,3059.9,3.26807481]
[1752604537993,3.0,3060.3,3059.7,0.65367162]
[1752604538205,0.4396,3060.3,3059.4,1.6228]
[1752604538505,0.4396,3060.3,3059.2,0.03268828]
[1752604538669,3.0,3060.3,3059.7,3.26828011]
[1752604538866,0.4396,3060.8,3059.9,3.26808065]
[1752604539137,3.0,3060.4,3059.5,4.25868507]
[1752604539310,3.4396,3060.5,3059.4,4.225]
[1752604539607,0.4396,3060.5,3060.1,3.26786613]
[1752604539970,3.0,3060.8,3060.1,3.26779065]
[1752604540284,2.104,3061.0,3060.3,3.26765349]
[1752604540470,0.4396,3061.4,3060.4,0.03267546]
[1752604540673,0.4396,3061.4,3061.0,3.26690203]
[1752604540889,0.4396,3061.3,3060.4,0.03267546]
[1752604541208,5.489,3061.9,3060.4,0.03267546]
[1752604541209,0.4396,3061.7,3060.7,3.26718494]
[1752604541415,3.0,3061.5,3060.6,3.26731985]
[1752604541716,1.5282,3061.0,3060.0,0.03267973]
[1752604541870,3.0,3060.7,3060.2,3.26775756]
[1752604542070,3.0,3060.4,3059.5,2.01096872]
[1752604542371,3.26796129,3060.1,3058.9,3.26908969]
[1752604542571,0.4396,3060.3,3059.0,5.8062]
[1752604542815,0.4396,3060.3,3059.5,3.26850306]
[1752604543043,0.4396,3060.8,3059.9,3.26805636]
[1752604543243,0.4396,3060.8,3059.6,3.30106599]
[1752604543244,3.70672944,3060.8,3059.6,3.30106599]
[1752604543406,3.0,3060.6,3060.1,3.26776538]
[1752604543601,0.4396,3060.5,3059.0,1.5852]
[1752604543798,1.5282,3061.0,3059.1,4.47948935]
[1752604544049,0.4396,3060.9,3059.6,1.5852]
[1752604544208,3.0,3060.8,3060.2,3.26770577]
[1752604544411,3.0,3060.8,3059.7,0.03268294]
[1752604544630,4.5282,3061.0,3055.5,4.68]
[1752604544631,3.0,3060.6,3058.9,4.85425933]
[1752604544831,3.0,3060.8,3059.8,3.26818746]
[1752604545117,3.0,3060.8,3059.2,1.5852]
[1752604545118,0.1632,3060.8,3060.3,3.26758385]
[1752604545315,3.0,3060.6,3060.1,3.26784854]
[1752604545504,30.4396,3060.5,3059.8,3.26816535]
[1752604545704,0.1632,3060.2,3059.7,0.1632]
[1752604545934,0.1632,3060.2,3060.0,3.26790518]
[1752604546116,0.1632,3060.2,3059.8,3.26818746]
[1752604546319,0.1632,3060.2,3059.8,3.26817795]
[1752604546536,3.8234741,3060.9,3059.5,4.207]
[1752604546537,0.4396,3060.1,3059.5,3.26843345]
[1752604546718,0.1632,3060.0,3059.7,3.26823409]
[1752604546908,0.1632,3060.0,3059.7,3.26827341]
[1752604547105,0.1632,3060.0,3059.8,3.26817176]
[1752604547308,0.86186281,3060.8,3059.7,0.03268294]
[1752604547523,3.0,3060.6,3059.6,0.03268401]
[1752604547757,3.0,3060.4,3059.9,3.26802156]
[1752604548051,3.69884654,3060.7,3059.8,3.26812857]
[1752604548052,3.0,3060.6,3059.8,3.26812857]
[1752604548269,3.26791013,3060.1,3059.5,3.30118592]
[1752604548436,3.4316,3060.6,3059.6,0.03268401]
[1752604548611,0.4316,3060.6,3059.7,0.33011919]
[1752604548817,3.2678202,3060.2,3059.5,3.26840216]
[1752604549211,0.4316,3060.3,3059.4,0.03268614]
[1752604549417,4.6219,3060.1,3059.3,0.03268721]
[1752604549642,3.0,3059.9,3059.3,3.26864476]
[1752604549828,0.4316,3060.0,3059.2,0.03268828]
[1752604550016,0.4316,3060.0,3059.4,3.26860577]
[1752604550348,0.4316,3060.0,3059.5,3.26848328]
[1752604550649,0.4316,3059.9,3059.2,0.03268828]
[1752604550949,3.0,3059.7,3059.0,0.03269042]
[1752604551168,3.0,3059.5,3058.6,3.26941207]
[1752604551347,3.0,3059.5,3058.4,4.79350538]
[1752604551348,6.26873631,3059.3,3058.7,3.26929486]
[1752604551512,1.6614,3059.4,3058.8,0.03269255]
[1752604551719,2.093,3059.4,3058.5,0.03269576]
[1752604551914,0.4316,3059.8,3058.5,0.26249576]
[1752604552136,0.4316,3060.2,3058.6,4.69060369]
[1752604552341,3.26816371,3059.9,3058.7,4.81771575]
[1752604552646,0.4316,3060.2,3059.3,3.26863791]
[1752604552848,0.4316,3060.2,3058.7,1.5484]
[1752604552849,3.0,3060.0,3058.7,1.5484]
[1752604553056,3.2687216,3059.3,3057.6,3.27046184]
[1752604553354,1.5887,3058.4,3056.8,1.7782]
[1752604553552,1.5887,3058.4,3056.9,0.03271287]
[1752604553751,8.25758013,3059.0,3058.6,3.26944174]
[1752604553752,0.4316,3058.9,3058.6,3.26944174]
[1752604554055,0.4316,3058.9,3058.0,3.27003415]
[1752604554056,3.0,3058.7,3058.0,3.3027261]
[1752604554348,3.26968349,3058.4,3057.1,4.221]
[1752604554552,3.0,3058.2,3057.0,3.27108229]
[1752604554728,3.0,3058.2,3056.9,0.2298]
[1752604554729,6.70153674,3058.2,3057.5,3.27063922]
[1752604555052,1.5887,3057.7,3055.4,1.5484]
[1752604555372,1.5887,3057.7,3056.7,1.5484]
[1752604555373,3.0,3057.5,3056.7,1.5484]
[1752604555658,0.4316,3057.6,3056.9,3.2712879]
[1752604555866,3.4316,3057.4,3056.0,1.58112251]
[1752604556015,36.2483,3057.3,3056.0,0.03272251]
[1752604556215,3.0,3057.1,3055.1,0.26453215]
[1752604556449,37.92979764,3057.0,3055.2,3.27310814]
[1752604556635,1.5887,3057.3,3055.4,1.5484]
[1752604556836,0.4316,3057.5,3057.2,3.27094716]
[1752604557052,0.4316,3057.5,3057.2,3.27096689]
[1752604557241,0.4316,3057.5,3057.1,3.27104362]
[1752604557414,0.1632,3057.6,3057.1,0.1632]
[1752604557618,0.1632,3057.6,3057.3,3.2708599]
[1752604557994,1.5887,3058.2,3058.1,3.27000425]
[1752604558197,3.70045389,3059.2,3057.6,1.58110538]
[1752604558354,0.1632,3058.2,3057.7,0.19590432]
[1752604558560,0.4316,3058.5,3057.5,0.03270645]
[1752604558868,33.26977772,3058.4,3057.5,3.30332896]
[1752604559202,3.0,3058.2,3057.6,3.27053898]
[1752604559404,0.4316,3058.5,3057.5,0.03270645]
[1752604559605,3.4316,3058.5,3057.5,0.03270645]
[1752604559786,3.70124492,3058.5,3057.6,3.27053116]
[1752604559996,30.0,3058.4,3057.7,0.03270432]
[1752604560287,4.5887,3058.3,3056.3,1.5484]
[1752604560508,3.0,3058.1,3056.5,3.27171601]
[1752604560800,30.4316,3058.2,3056.2,4.4688]
[1752604560801,0.4316,3058.2,3057.5,3.27055029]
[1752604561004,4.5887,3058.3,3057.6,0.03270538]
[1752604561212,0.4316,3059.2,3057.2,1.5484]
[1752604561356,30.0,3059.1,3057.6,3.27053898]
[1752604561561,3.26977333,3058.4,3057.2,1.5484]
[1752604561797,3.26969432,3058.4,3057.8,3.2703189]
[1752604562120,3.0,3057.9,3056.6,3.27160763]
[1752604562399,3.0,3057.9,3057.0,3.27118089]
[1752604562400,3.0,3057.7,3057.0,3.27118089]
[1752604562601,3.26925591,3058.8,3057.0,5.8243]
[1752604562764,3.0,3058.7,3058.0,3.27005807]